Cogmind - Beta 15 @@@ ROGUE MODE // 2025.10.19 @ 11:28:57 Player: DietSnapple Result: Destroyed by GB-TE6(R) with Subdweller Laser Performance ------------- Evolutions (0) 0 Regions Visited (3) 600 Robots Destroyed (10) 50 Value Destroyed (233) 233 Prototype IDs (0) 0 Alien Tech Used (0) 0 Bonus (57) 57 TOTAL SCORE: 940 Bonus ------- Follower Combat Kills 67 Friendly Fire -10 Cogmind --------- Core Integrity 0/250 Matter 300/300 Energy 250/250 System Corruption 0% Temperature Cool (6) Movement Core (450) Ox8 Location -10/Subcaves Parts ------- > --- POWER (1) -------- Ion Engine > --- PROPULSION (2) --- (None) > --- UTILITY (2) ------ Large Storage Unit > --- WEAPON (2) ------- (None) > --- INVENTORY (15) --- Light Ion Engine Light Ion Engine Light Nuclear Core Light Treads Small Storage Unit Small Laser Light Assault Rifle Mining Laser Peak State ------------ > --- POWER ------------ Light Ion Engine > --- PROPULSION ------- Light Treads Light Treads > --- UTILITY ---------- Small Storage Unit Large Storage Unit > --- WEAPON ----------- Assault Rifle Light Assault Rifle > --- INVENTORY -------- Light Ion Engine Wheel Compact Wheel Small Laser [Rating: 7] Favorites ----------- Power Ion Engine Engine Ion Engine Propulsion Light Treads Treads Light Treads Wheel Compact Wheel Utility Large Storage Unit Storage Large Storage Unit Weapon Assault Rifle Ballistic Gun Assault Rifle Launcher Grenade Launcher Build | -11 -10 -10 -10 ------- Run | Yrd Mat Min Sub Slots Evolved . | . . . . Power . | . . . . Propulsion . | . . . . Utility . | . . . . Weapon . | . . . . Parts Attached 11 | 8 2 . 1 Power 2 | 1 1 . . Engine 2 | 1 1 . . Core . | . . . . Reactor . | . . . . Propulsion 4 | 4 . . . Treads 2 | 2 . . . Leg . | . . . . Wheel 2 | 2 . . . Hover . | . . . . Flight . | . . . . Utility 2 | 1 1 . . Device . | . . . . Storage 2 | 1 1 . . Processor . | . . . . Hackware . | . . . . Protection . | . . . . Artifact . | . . . . Weapon 3 | 2 . . 1 Energy Gun . | . . . . Energy Cannon . | . . . . Ballistic Gun 2 | 2 . . . Ballistic Cannon . | . . . . Launcher 1 | . . . 1 Special Weapon . | . . . . Impact Weapon . | . . . . Slashing Weapon . | . . . . Piercing Weapon . | . . . . Special Melee Weapon . | . . . . Unidentified Prototypes . | . . . . Parts Lost 5 | . . 1 4 Power . | . . . . Propulsion 3 | . . 1 2 Utility . | . . . . Weapon 2 | . . . 2 Highest Loss Streak 4 | . . 1 4 To Critical Strikes . | . . . . Average Backups 6 | 2 4 8 8 Power 1 | . 1 2 3 Propulsion 1 | 1 2 2 1 Utility . | . . 1 1 Weapon 1 | . 1 2 3 Tool/Special . | . . . . Unused Backups 4 | . . . 4 Power 2 | . . . 2 Propulsion . | . . . . Utility . | . . . . Weapon 2 | . . . 2 Tool/Special . | . . . . Average Slot Usage (%) 82 | . 88 75 81 Engine 14 | . 14 14 14 Treads 20 | . 28 18 . Wheel 3 | . . . 25 Storage 15 | . 17 14 14 Ballistic Gun 25 | . 28 28 14 Launcher 1 | . . . 12 Peak Build Rating 7 | 6 7 7 7 Average Rating 6 | 4 6 6 6 On Entrance 4 | . 6 6 6 Naked Turns . | . . . . Heaviest Build 33 | 11 33 28 30 Greatest Support 40 | 40 40 40 26 Greatest Overweight (x) 8 | . . 1 8 Average Overweight (x) . | . . . 1 Largest Inventory Capacity 15 | 8 15 15 15 Average Capacity 12 | 7 10 15 15 Most Carried 9 | 4 7 9 9 Average Carried 6 | 2 4 8 8 Final Capacity 15 | 8 15 15 15 Final Carried 9 | 4 7 9 8 Class Distribution -------------------- 100% | Mutant Dominant Class ---------------- Mutant | -10/Materials Mutant | -10/Mines Mutant | -10/Subcaves Resources | -11 -10 -10 -10 ----------- Run | Yrd Mat Min Sub Matter Collected 506 | 166 153 132 55 Remotely . | . . . . Salvage Created 275 | . 216 25 34 Parts 18 | . 10 5 3 Haulers Intercepted . | . . . . Recyclers Shooed . | . . . . Parts Field Recycled . | . . . . Retrieved Matter . | . . . . Parts Self-Destructed 5 | . . . 5 Prevented . | . . . . Kills | -11 -10 -10 -10 ------- Run | Yrd Mat Min Sub Combat Hostiles Destroyed 10 | . 5 2 3 Guns 8 | . 5 2 1 AOE 2 | . . . 2 Classes Destroyed 2 | . 1 1 . Swarmer 5 | . . 2 3 Grunt 5 | . 5 . . Best Kill Streak 3 | . 1 2 3 Combat Bots Only 3 | . 1 2 3 Max Kills in Single Turn 2 | . 1 1 2 Gunslinging . | . . . . Exploded 2 | . . . 2 Melee . | . . . . Uniques/NPCs Destroyed . | . . . . Combat | -11 -10 -10 -10 -------- Run | Yrd Mat Min Sub Hostile Shots Fired 68 | . 42 8 18 Missed 14 | . 9 3 2 Hits 54 | . 33 5 16 Projectile 54 | . 33 5 16 AOE 4 | . . . 4 Damage Taken 854 | . 392 57 405 Core 264 | . 80 . 184 Absorbed by Shields . | . . . . Core Remaining (%) 100 | 100 . . . Volleys Fired 48 | . 33 7 8 Largest 2 | . 2 2 1 Hottest 40 | . 40 40 30 Shots Fired 88 | . 66 14 8 Gun 85 | . 66 14 5 Cannon . | . . . . Launcher 3 | . . . 3 Special . | . . . . Kinetic 85 | . 66 14 5 Thermal . | . . . . Explosive 3 | . . . 3 Electromagnetic . | . . . . Robot Hit Streak 10 | . 10 4 1 Robot Miss Streak 4 | . 1 4 3 Penetration Max . | . . . . Secondary Targets 1 | . . 1 . Max Gunslinging Chain 1 | . . 1 . Shots Hit Robots 62 | . 54 7 1 Core Hits 20 | . 14 3 3 Critical Kills . | . . . . Critical Parts Destroyed . | . . . . Critical Strikes . | . . . . Melee Attacks . | . . . . Impact . | . . . . Slashing . | . . . . Piercing . | . . . . Sneak Attacks . | . . . . Combat Hostiles . | . . . . Follow-up Attacks . | . . . . Damage Inflicted 726 | . 569 81 76 Guns 661 | . 569 80 12 Cannons . | . . . . Explosions 64 | . . . 64 Melee . | . . . . Ramming 1 | . . 1 . Kinetic 661 | . 569 80 12 Thermal . | . . . . Explosive 64 | . . . 64 Electromagnetic . | . . . . Impact . | . . . . Slashing . | . . . . Piercing . | . . . . Highest Corruption . | . . . . Average Corruption . | . . . . Corruption Purged . | . . . . Corruption Blocked . | . . . . Overload Shots . | . . . . Overflow Damage . | . . . . Projectiles . | . . . . Explosions . | . . . . Melee . | . . . . Knockbacks . | . . . . Impact . | . . . . Kinetic . | . . . . Secondary . | . . . . Self-Inflicted Damage 13 | . . . 13 Shots 1 | . . . 1 Rammed 2 | . . 2 . Targets Rammed 2 | . . 2 . Kicked . | . . . . Crushed . | . . . . Highest Temperature 18 | . 12 18 . Average Temperature 7 | . 6 10 . Received Heat Transfer 252 | . 213 27 12 Siege Activations . | . . . . Martial Activations . | . . . . Shielding Activations . | . . . . Robots Disrupted . | . . . . Combat Hostiles . | . . . . Robots Corrupted . | . . . . Combat Hostiles . | . . . . Parts Fried . | . . . . Impact Corruptions . | . . . . Robots Melted . | . . . . Combat Hostiles . | . . . . Parts Melted . | . . . . Heat Transferred . | . . . . Parts Sabotaged . | . . . . Parts Stolen . | . . . . Parts Stripped . | . . . . Power Chain Reactions . | . . . . Alert | -11 -10 -10 -10 ------- Run | Yrd Mat Min Sub Maximum Alert Level . | . . . . Low Security (%) 100 | 100 100 100 . Level 1 . | . . . . Level 2 . | . . . . Level 3 . | . . . . Level 4 . | . . . . Level 5 . | . . . . High Security . | . . . . Max Security . | . . . . Peak Influence 77 | . 61 77 . Initial . | . . . . Average 14 | . 13 17 . Influence Increases 365 | . 168 127 70 Destroy 0b10 Robot/C 260 | . 100 100 60 Destroy Leader 50 | . 20 20 10 Allied During Kill 7 | . . 7 . Successful Hack 18 | . 18 . . Lose Combat Pursuer 30 | . 30 . . Influence Decreases 365 | . 168 127 70 Time Decay 355 | . 168 117 70 Lost Part 10 | . . 10 . Squads Dispatched 1 | . 1 . . Investigation 1 | . 1 . . Extermination . | . . . . Reinforcement . | . . . . Assault . | . . . . Garrison . | . . . . Intercept . | . . . . Searches Triggered . | . . . . Construction Impeded . | . . . . Haulers Reinforced . | . . . . Active Scanning Responses . | . . . . Cargo Convoy Interrupts . | . . . . Stealth | -11 -10 -10 -10 --------- Run | Yrd Mat Min Sub Distress Signals . | . . . . Communications Jammed . | . . . . Distress Signals . | . . . . Times Spotted 21 | . 11 4 6 Peak Tracking Total 4 | . 4 3 3 Tactical Retreats 2 | . 2 . . Traps | -11 -10 -10 -10 ------- Run | Yrd Mat Min Sub Traps Triggered 1 | . 1 . . Indirectly . | . . . . Trap Hack Attempts . | . . . . Triggered . | . . . . Disarmed . | . . . . Reprogrammed . | . . . . Reused . | . . . . Traps Extracted . | . . . . Installed . | . . . . Triggered . | . . . . Machines | -11 -10 -10 -10 ---------- Run | Yrd Mat Min Sub Machines Disabled . | . . . . Max in Single Turn . | . . . . Machines Repaired . | . . . . Machines Dismantled . | . . . . Machines Sabotaged . | . . . . Overloaded Fab Kills . | . . . . Hacking | -11 -10 -10 -10 --------- Run | Yrd Mat Min Sub Machines Accessed 3 | . 3 . . Terminals 3 | . 3 . . Fabricators . | . . . . Repair Stations . | . . . . Recycling Units . | . . . . Scanalyzers . | . . . . Garrison Access . | . . . . Total Hacks 10 | . 10 . . Successful 3 | . 3 . . Failed 7 | . 7 . . Catastrophic 2 | . 2 . . Database Lockouts . | . . . . Manual 8 | . 8 . . Terminals 10 | . 10 . . Fabricators . | . . . . Repair Stations . | . . . . Recycling Units . | . . . . Scanalyzers . | . . . . Garrison Access . | . . . . Terminal Hacks . | . . . . Fabricator Hacks . | . . . . Repair Station Hacks . | . . . . Recycling Unit Hacks . | . . . . Scanalyzer . | . . . . Garrison Access Hacks . | . . . . Unauthorized Hacks 3 | . 3 . . Terminals 3 | . 3 . . Botnet 2 | . 2 . . Operators 1 | . 1 . . Fabricators . | . . . . Repair Stations . | . . . . Recycling Units . | . . . . Scanalyzers . | . . . . Garrison Access . | . . . . Data Cores Recovered . | . . . . Used . | . . . . Hacking Detections 3 | . 3 . . Full Trace Events . | . . . . Feedback Events . | . . . . Feedback Blocked . | . . . . Robot Schematics Acquired . | . . . . Robots Built . | . . . . Authchips . | . . . . Time . | . . . . Total Robot Build Rating . | . . . . Part Schematics Acquired . | . . . . Parts Built . | . . . . Authchips . | . . . . Time . | . . . . Total Part Build Rating . | . . . . Parts Repaired . | . . . . Time . | . . . . Parts Recycled . | . . . . Recycled Matter . | . . . . Retrieved Matter . | . . . . Retrieved Components . | . . . . Parts Scanalyzed . | . . . . Part Schematics Acquired . | . . . . Parts Damaged . | . . . . Bothacking | -11 -10 -10 -10 ------------ Run | Yrd Mat Min Sub Used RIF Installer . | . . . . Robots Hacked . | . . . . Non-combat . | . . . . Combat . | . . . . Robot Hacks Applied . | . . . . Relay Couplers Released . | . . . . Fabnet Peak Effective % . | . . . . Robots Rewired . | . . . . Allies Hacked . | . . . . Hacks Repelled . | . . . . Allies | -11 -10 -10 -10 -------- Run | Yrd Mat Min Sub Total Allies 1 | . . 1 . Largest Group 1 | . . 1 . Highest-Rated Group 31 | . . 31 . Highest-Rated Ally 31 | . . 31 . Total Orders . | . . . . Ally Attacks 10 | . . 10 . Total Damage 127 | . . 127 . Kills 3 | . . 3 . Allies Corrupted . | . . . . Allies Melted . | . . . . Intel | -11 -10 -10 -10 ------- Run | Yrd Mat Min Sub Active Infowar (turns) . | . . . . Robot Analysis Total . | . . . . Derelict Logs Recovered 3 | . . 2 1 Drone Launches . | . . . . Drone Recoveries . | . . . . Exploration | -11 -10 -10 -10 ------------- Run | Yrd Mat Min Sub Turns Passed 1409 | 81 685 459 184 Spaces Moved 766 | 62 347 202 155 Core 6 | 5 . . 1 Treads 567 | 18 347 202 . Legs . | . . . . Wheels 193 | 39 . . 154 Hover . | . . . . Flight . | . . . . Fastest Speed 50 | 50 160 160 90 Average Speed 158 | 107 160 209 107 Slowest Speed 450 | 160 160 240 450 Overloaded Moves . | . . . . Propulsion Burnouts . | . . . . Robots Hopped . | . . . . Potential Cave-ins . | . . . . Cave-ins Triggered . | . . . . Exploration Rate (%) 25 | 4 42 42 13 Regions Visited 3 Branch Regions 2 Pre-discovered Areas . | . . . . Known Exits Taken . | . . . . Unknown Exits Taken 3 | 1 1 1 . Scrap Searched . | . . . . Spaces Dug . | . . . . Terrain Destroyed 11 | . . . 11 Melee . | . . . . Projectile . | . . . . AOE 11 | . . . 11 Terrain Rammed . | . . . . Walls Destroyed . | . . . . Machines Disabled . | . . . . Actions | -11 -10 -10 -10 --------- Run | Yrd Mat Min Sub Total 879 | 73 417 223 166 Wait 45 | . 34 11 . Move 763 | 61 346 201 155 Hop . | . . . . Pick Up 7 | 4 1 2 . Fast Attach 7 | 6 1 . . Attach 1 | . . . 1 Detach 1 | . 1 . . Swap 5 | 2 1 . 2 Drop . | . . . . Fire 48 | . 33 7 8 Melee . | . . . . Ram . | . . . . Kick . | . . . . Crush 2 | . . 2 . Escape Stasis . | . . . . Rewire . | . . . . Trap . | . . . . Miscellaneous . | . . . . Route ------- -11/Scrapyard -10/Materials -10/Mines -10/Subcaves History --------- Turn | Location | Event 9 | -11/Scrapyard | Discovered new exit (range 16) 82 | -11/Scrapyard | Entered Materials 311 | -10/Materials | Build established: Mutant 708 | -10/Materials | Discovered new exit (range 8) 767 | -10/Materials | Entered Mines 770 | -10/Mines | Received a Mining Laser from a helpful Derelict 963 | -10/Mines | Discovered new exit (range 4) 1042 | -10/Mines | Learned location of 1 exit from Materials 1049 | -10/Mines | Learned Materials terminal intel 1116 | -10/Mines | Assembled infested the area 1226 | -10/Mines | Entered Subcaves 1227 | -10/Subcaves | Approached by a straggling Scientist 1340 | -10/Subcaves | Shifting Twisted Machinery released Battle Rifle 1354 | -10/Subcaves | Learned Materials security intel 1404 | -10/Subcaves | Ambushed by Subdweller buried in earth 1409 | -10/Subcaves | Core integrity fell below 50% 1410 | -10/Subcaves | Destroyed by GB-TE6(R) with Subdweller Laser Last Messages --------------- 01276_ Acquired 16 matter. BO-VSY(c): "I think it's somewhere east of here" 01278_ Acquired 14 matter. 01280_ Flight Unit fries itself beyond repair. 01282_ Acquired 6 matter. 01283_ Acquired 12 matter. 01289_ Lgt. Ion Engine fries itself beyond repair. 01316_ Acquired 7 matter. BO-VSY(c): "I think it's somewhere east of here" Battle Rifle falls loose from the Twisted Machinery. 01354_ Acquired derelict log, extracted data. Data stored: Materials security intel. BO-VSY(c): "I think it's somewhere northeast of here" 01401_ Grenade Launcher destroyed. 01404_ Assault Rifle destroyed. 01405_ KA-JXL(R): "GOODGOOD!" 01405_ The unstable cave ceiling collapses. 01406_ Wheel destroyed. 01408_ Com. Wheel destroyed. 01408_ BO-VSY(c) destroyed. Map ----- +----------------------------------------------------+ | #???## ###???? ##?????????????????????? | | ?????##### ##??# ####??????????????????? | | ##??????## ### ??????????????????? | | #??????# % #??????????????????? | | #??????# %% % #??????????????????? | | #??????## ### % % ### ???????????????????? | | ##???????##### %## % #?????????????????????????? | | #?????#####?# #?# ##?????????????????????????? | | ?###### #?# #??###??????????????????????????? | | ## # #?# ##??????????????????????????????? | | # ### ###????????????????????????????? | | #????????????????????????????? | | #????????????????????????????? | | "" ## ####????????????????????????????? | | ?"?## ####??#####????????????????????????? | | "# ?## #???## # # #??????????????????????? | | ???## ### #?### ????????????????????????? | | "?????#" ##?##### #???????????????????????????? | | ??????# ##???## #?????#######?##?????????????? | | ????### ##### ##???## ## ##????????????? | | ???## " " ## # #####; ; ;### # ##?????? | | ???# """" ## # ; # #?????? | | ??# " ""[ #### ;; R #???? | | ?# "## # #??##= R ??? | | ?## "#### #???# R " "????? | | ??## #### #??## @ """""""?????? | | ???## ###" #??# ;;#""""????????? | | ????##"#??## #?# ### ###??"?????????? | | ?????#"????## ##?# ; #??##??????????????? | | ????????????####??# #;## #??????????????????? | | ??????????????????####?## #####??????????????????? | | ????????????????????????###??????????????????????? | | ?????????????????????????????????????????????????? | | ?????????????????????????????????????????????????? | | ?????????????????????????????????????????????????? | | ?????????????????????????????????????????????????? | | ?????????????????????????????????????????????????? | | ?????????????????????????????????????????????????? | | ?????????????????????????????????????????????????? | | ?????????????????????????????????????????????????? | | ?????????????????????????????????????????????????? | | ?????????????????????????????????????????????????? | | ?????????????????????????????????????????????????? | | ?????????????????????????????????????????????????? | | ?????????????????????????????????????????????????? | | | | | | | | | | | +----------------------------------------------------+ Best States ------------- Heat Dissipation 25 Energy Generation 10 Energy Capacity 250 Matter Stores 300 Matter Capacity 300 Sight Range 16 Terrain Scan Density 10 Evasion (%) 42 Recoil Reduction 2 Item Schematics ----------------- None Robot Schematics ------------------ None Fabricated ------------ Nothing Repaired ---------- Nothing Alien Tech Used ----------------- None Achievements -------------- None Challenges ------------ None Game ------ Seed BoltBurstLattice Manual? 0 Play Time 00:07:51 Cumulative 39.2 hours Start 2025.10.19 @ 11:22:29 End 2025.10.19 @ 11:28:57 Sessions 1 Manual Loads 0 Difficulty Rogue Special Mode None Game No. 97 Rogue 90 Adventurer 7 Explorer 0 Win Type - Total 1 Types 1/0/0/0/0/0/0/0/0/0 Lore% 9 Gallery% 31 Achievement% 32 Wizard Run 0 Options --------- Layout 0 ASCII 0 Keyboard 1 Movement Vi Keybinds 0 Fullscreen 1 Font 18/SmallcapsGlow Map View 112x50 Zoom Use 0% Tactical HUD 1 Map Filters NONE Filters NONE Steam 1 RUN: 8a4cb6ad-48fe-4995-8dd3-cd3153e1bb75